[Event "Titled Tuesday Blitz February 28 Early 2023"]
[White "Md, Imran"]
[Black "Toncheva, Nadya"]
[WhiteFideId "25748580"]
[BlackFideId "2924056"]
[WhiteElo "2217"]
[BlackElo "2101"]
[Result "1-0"]
[Round "07"]
[TimeControl "180+2"]
[Date "2023.02.28"]
[WhiteClock "0:01:48"]
[BlackClock "0:01:28"]

1. d4 {[%clk 0:03:00]}  d5 {[%clk 0:02:58]} 2. Bf4 {[%clk 0:03:00]}  Nf6 {[%clk 0:02:58]} 3. Nf3 {[%clk 0:03:01]}  c5 {[%clk 0:02:59]} 4. e3 {[%clk 0:03:00]}  Nc6 {[%clk 0:02:58]} 5. Nbd2 {[%clk 0:03:00]}  Qb6 {[%clk 0:02:54]} 6. dxc5 {[%clk 0:03:00]}  Qxb2 {[%clk 0:02:55]} 7. Rb1 {[%clk 0:03:00]}  Qc3 {[%clk 0:02:55]} 8. Bb5 {[%clk 0:03:00]}  g6 {[%clk 0:02:55]} 9. O-O {[%clk 0:02:58]}  Bg7 {[%clk 0:02:55]} 10. Nb3 {[%clk 0:02:58]}  O-O {[%clk 0:02:53]} 11. Bxc6 {[%clk 0:02:57]}  bxc6 {[%clk 0:02:53]} 12. Be5 {[%clk 0:02:57]}  Qc4 {[%clk 0:02:52]} 13. Qd4 {[%clk 0:02:58]}  Qxd4 {[%clk 0:02:49]} 14. exd4 {[%clk 0:02:48]}  Bf5 {[%clk 0:02:37]} 15. Na5 {[%clk 0:02:43]}  Bxc2 {[%clk 0:02:29]} 16. Nxc6 {[%clk 0:02:31]}  Bxb1 {[%clk 0:02:27]} 17. Nxe7+ {[%clk 0:02:29]}  Kh8 {[%clk 0:02:27]} 18. Rxb1 {[%clk 0:02:30]}  Rfe8 {[%clk 0:01:50]} 19. Bxf6 {[%clk 0:02:06]}  Bxf6 {[%clk 0:01:51]} 20. Nxd5 {[%clk 0:02:06]}  Rab8 {[%clk 0:01:42]} 21. Rc1 {[%clk 0:01:49]}  Bxd4 {[%clk 0:01:27]} 22. Nxd4 {[%clk 0:01:49]}  Red8 {[%clk 0:01:28]} 23. Nc6 {[%clk 0:01:48]} 1-0


[Site "https://www.chess.com"]

[Event "Titled Tuesday Blitz February 28 Early 2023"]
[White "Alvarez Calzadilla, Jose Avelino"]
[Black "Grot, Blazej"]
[WhiteFideId "3526151"]
[BlackFideId "21835845"]
[WhiteElo "2310"]
[BlackElo "1823"]
[Result "1-0"]
[Round "07"]
[TimeControl "180+2"]
[Date "2023.02.28"]
[WhiteClock "0:00:26"]
[BlackClock "0:00:21"]

1. d4 {[%clk 0:02:58]}  Nf6 {[%clk 0:02:59]} 2. Nf3 {[%clk 0:02:58]}  g6 {[%clk 0:02:59]} 3. Bg5 {[%clk 0:02:58]}  Bg7 {[%clk 0:03:00]} 4. Nbd2 {[%clk 0:02:58]}  O-O {[%clk 0:02:59]} 5. c3 {[%clk 0:02:58]}  d5 {[%clk 0:02:59]} 6. Bxf6 {[%clk 0:02:51]}  exf6 {[%clk 0:02:55]} 7. e3 {[%clk 0:02:51]}  f5 {[%clk 0:02:54]} 8. c4 {[%clk 0:02:50]}  c6 {[%clk 0:02:54]} 9. cxd5 {[%clk 0:02:48]}  cxd5 {[%clk 0:02:55]} 10. Be2 {[%clk 0:02:46]}  Nc6 {[%clk 0:02:56]} 11. O-O {[%clk 0:02:46]}  Re8 {[%clk 0:02:55]} 12. Rc1 {[%clk 0:02:46]}  Be6 {[%clk 0:02:50]} 13. Bb5 {[%clk 0:02:44]}  Rc8 {[%clk 0:02:49]} 14. Bxc6 {[%clk 0:02:44]}  Rxc6 {[%clk 0:02:47]} 15. Rxc6 {[%clk 0:02:43]}  bxc6 {[%clk 0:02:48]} 16. Nb3 {[%clk 0:02:43]}  Qb6 {[%clk 0:02:45]} 17. Qc2 {[%clk 0:02:42]}  Bf8 {[%clk 0:02:38]} 18. Rc1 {[%clk 0:02:43]}  Rc8 {[%clk 0:02:36]} 19. Nc5 {[%clk 0:02:41]}  Bxc5 {[%clk 0:02:36]} 20. dxc5 {[%clk 0:02:42]}  Qb4 {[%clk 0:02:33]} 21. Nd4 {[%clk 0:02:38]}  Kf8 {[%clk 0:02:29]} 22. a3 {[%clk 0:02:37]}  Qb7 {[%clk 0:02:27]} 23. b4 {[%clk 0:02:36]}  a5 {[%clk 0:02:20]} 24. Qc3 {[%clk 0:02:28]}  axb4 {[%clk 0:02:19]} 25. axb4 {[%clk 0:02:29]}  Kg8 {[%clk 0:02:18]} 26. h4 {[%clk 0:02:28]}  h5 {[%clk 0:02:16]} 27. Nf3 {[%clk 0:02:22]}  Rb8 {[%clk 0:02:12]} 28. Rb1 {[%clk 0:02:19]}  Qa6 {[%clk 0:02:08]} 29. Qe5 {[%clk 0:02:18]}  Rc8 {[%clk 0:02:03]} 30. Nd4 {[%clk 0:02:16]}  Re8 {[%clk 0:02:00]} 31. Qd6 {[%clk 0:02:11]}  Qa2 {[%clk 0:01:49]} 32. Rf1 {[%clk 0:02:07]}  Qa4 {[%clk 0:01:44]} 33. Nxc6 {[%clk 0:01:53]}  d4 {[%clk 0:01:43]} 34. Nxd4 {[%clk 0:01:47]}  Bc4 {[%clk 0:01:41]} 35. Rb1 {[%clk 0:01:38]}  Bd3 {[%clk 0:01:31]} 36. Rc1 {[%clk 0:01:29]}  Qxb4 {[%clk 0:01:27]} 37. Qf6 {[%clk 0:01:16]}  Qb2 {[%clk 0:01:18]} 38. Rd1 {[%clk 0:01:11]}  Bc2 {[%clk 0:01:11]} 39. Re1 {[%clk 0:01:10]}  Qc3 {[%clk 0:01:07]} 40. Rc1 {[%clk 0:00:55]}  Rxe3 {[%clk 0:00:53]} 41. Qd8+ {[%clk 0:00:43]}  Kg7 {[%clk 0:00:45]} 42. Nxc2 {[%clk 0:00:41]}  Rd3 {[%clk 0:00:39]} 43. Qg5 {[%clk 0:00:31]}  Rd2 {[%clk 0:00:30]} 44. Qe3 {[%clk 0:00:28]}  Rd3 {[%clk 0:00:23]} 45. Qe1 {[%clk 0:00:27]}  Qxc5 {[%clk 0:00:21]} 46. Nb4 {[%clk 0:00:26]} 1-0


[Site "https://www.chess.com"]

[Event "Titled Tuesday Blitz February 28 Early 2023"]
[White "Fiedorek, Michal"]
[Black "Diaz Perez, Michel Alejandro"]
[WhiteFideId "1199528"]
[BlackFideId "3517179"]
[WhiteElo "2135"]
[BlackElo "2333"]
[Result "0-1"]
[Round "07"]
[TimeControl "180+2"]
[Date "2023.02.28"]
[WhiteClock "0:00:03"]
[BlackClock "0:00:12"]

1. e4 {[%clk 0:03:00]}  c6 {[%clk 0:02:57]} 2. d4 {[%clk 0:02:55]}  d5 {[%clk 0:02:58]} 3. exd5 {[%clk 0:02:47]}  cxd5 {[%clk 0:02:59]} 4. Nf3 {[%clk 0:02:47]}  Nc6 {[%clk 0:02:56]} 5. Ne5 {[%clk 0:02:47]}  Nxe5 {[%clk 0:02:40]} 6. dxe5 {[%clk 0:02:47]}  e6 {[%clk 0:02:41]} 7. Bd3 {[%clk 0:02:46]}  Ne7 {[%clk 0:02:40]} 8. O-O {[%clk 0:02:46]}  Nc6 {[%clk 0:02:40]} 9. Re1 {[%clk 0:02:45]}  Bc5 {[%clk 0:02:39]} 10. Nd2 {[%clk 0:02:43]}  Qh4 {[%clk 0:02:34]} 11. Qf3 {[%clk 0:02:21]}  Nd4 {[%clk 0:02:15]} 12. Qg3 {[%clk 0:02:20]}  Qxg3 {[%clk 0:02:14]} 13. hxg3 {[%clk 0:02:21]}  Bd7 {[%clk 0:02:14]} 14. c3 {[%clk 0:02:20]}  Nc6 {[%clk 0:02:13]} 15. Nb3 {[%clk 0:02:18]}  Bb6 {[%clk 0:02:12]} 16. Bd2 {[%clk 0:02:10]}  h5 {[%clk 0:02:08]} 17. c4 {[%clk 0:01:59]}  dxc4 {[%clk 0:02:07]} 18. Bxc4 {[%clk 0:02:00]}  O-O-O {[%clk 0:02:07]} 19. Bg5 {[%clk 0:01:57]}  Rde8 {[%clk 0:02:03]} 20. Rac1 {[%clk 0:01:50]}  Kb8 {[%clk 0:01:59]} 21. Bf1 {[%clk 0:01:45]}  Ne7 {[%clk 0:01:50]} 22. Red1 {[%clk 0:01:33]}  Bc6 {[%clk 0:01:49]} 23. Nc5 {[%clk 0:01:27]}  Nd5 {[%clk 0:01:41]} 24. a3 {[%clk 0:01:20]}  f6 {[%clk 0:01:31]} 25. exf6 {[%clk 0:01:18]}  gxf6 {[%clk 0:01:31]} 26. Bh4 {[%clk 0:01:12]}  a5 {[%clk 0:01:17]} 27. b4 {[%clk 0:01:08]}  axb4 {[%clk 0:01:15]} 28. axb4 {[%clk 0:01:08]}  Nxb4 {[%clk 0:01:16]} 29. Bxf6 {[%clk 0:01:08]}  Rhf8 {[%clk 0:01:13]} 30. Be5+ {[%clk 0:01:07]}  Kc8 {[%clk 0:01:14]} 31. Nd7 {[%clk 0:01:02]}  Bxf2+ {[%clk 0:01:10]} 32. Kh2 {[%clk 0:01:00]}  Rf5 {[%clk 0:01:06]} 33. Rc4 {[%clk 0:00:51]}  Nd5 {[%clk 0:01:03]} 34. Nf6 {[%clk 0:00:19]}  Rxf6 {[%clk 0:00:29]} 35. Rxc6+ {[%clk 0:00:14]}  bxc6 {[%clk 0:00:25]} 36. Ba6+ {[%clk 0:00:14]}  Kd7 {[%clk 0:00:25]} 37. Bxf6 {[%clk 0:00:14]}  Rg8 {[%clk 0:00:20]} 38. Be5 {[%clk 0:00:14]}  Rg5 {[%clk 0:00:21]} 39. Bb8 {[%clk 0:00:13]}  e5 {[%clk 0:00:20]} 40. Rb1 {[%clk 0:00:11]}  Bxg3+ {[%clk 0:00:21]} 41. Kh3 {[%clk 0:00:08]}  h4 {[%clk 0:00:20]} 42. Rb7+ {[%clk 0:00:06]}  Ke6 {[%clk 0:00:21]} 43. Bc4 {[%clk 0:00:06]}  Kf6 {[%clk 0:00:18]} 44. Bxd5 {[%clk 0:00:04]}  cxd5 {[%clk 0:00:19]} 45. Rb6+ {[%clk 0:00:04]}  Kf5 {[%clk 0:00:19]} 46. Rd6 {[%clk 0:00:03]}  d4 {[%clk 0:00:19]} 47. Rd8 {[%clk 0:00:02]}  Rg6 {[%clk 0:00:18]} 48. Bd6 {[%clk 0:00:01]}  e4 {[%clk 0:00:14]} 49. Be7 {[%clk 0:00:02]}  d3 {[%clk 0:00:13]} 50. Rf8+ {[%clk 0:00:02]}  Ke6 {[%clk 0:00:13]} 51. Bxh4 {[%clk 0:00:02]}  Bxh4 {[%clk 0:00:13]} 52. Kxh4 {[%clk 0:00:02]}  d2 {[%clk 0:00:13]} 53. Rd8 {[%clk 0:00:02]}  e3 {[%clk 0:00:13]} 54. g4 {[%clk 0:00:03]}  Ke7 {[%clk 0:00:11]} 55. Rd3 {[%clk 0:00:02]}  Rd6 {[%clk 0:00:11]} 56. Rxe3+ {[%clk 0:00:02]}  Kf7 {[%clk 0:00:11]} 57. Rf3+ {[%clk 0:00:02]}  Kg6 {[%clk 0:00:11]} 58. Rf1 {[%clk 0:00:03]}  d1=Q {[%clk 0:00:11]} 59. Rxd1 {[%clk 0:00:03]}  Rxd1 {[%clk 0:00:12]} 0-1


[Site "https://www.chess.com"]

[Event "Titled Tuesday Blitz February 28 Early 2023"]
[White "Koridze, Lile"]
[Black "Ambartsumova, Karina"]
[WhiteFideId "13612514"]
[BlackFideId "4166299"]
[WhiteElo "2047"]
[BlackElo "2319"]
[Result "1-0"]
[Round "07"]
[TimeControl "180+2"]
[Date "2023.02.28"]
[WhiteClock "0:00:41"]
[BlackClock "0:00:03"]

1. d4 {[%clk 0:03:00]}  Nf6 {[%clk 0:02:57]} 2. c4 {[%clk 0:03:00]}  g6 {[%clk 0:02:57]} 3. Nc3 {[%clk 0:02:59]}  Bg7 {[%clk 0:02:57]} 4. e4 {[%clk 0:02:58]}  d6 {[%clk 0:02:56]} 5. Nf3 {[%clk 0:02:56]}  O-O {[%clk 0:02:55]} 6. Be2 {[%clk 0:02:55]}  Na6 {[%clk 0:02:47]} 7. O-O {[%clk 0:02:55]}  c5 {[%clk 0:02:44]} 8. d5 {[%clk 0:02:39]}  Nc7 {[%clk 0:02:34]} 9. h3 {[%clk 0:02:39]}  a6 {[%clk 0:02:34]} 10. Bf4 {[%clk 0:02:38]}  b5 {[%clk 0:02:26]} 11. a3 {[%clk 0:02:35]}  b4 {[%clk 0:02:20]} 12. axb4 {[%clk 0:02:30]}  cxb4 {[%clk 0:02:21]} 13. Na4 {[%clk 0:02:30]}  Nxe4 {[%clk 0:02:15]} 14. Qc2 {[%clk 0:02:27]}  Nf6 {[%clk 0:01:57]} 15. Bd3 {[%clk 0:02:27]}  e5 {[%clk 0:01:46]} 16. dxe6 {[%clk 0:02:26]}  Bxe6 {[%clk 0:01:41]} 17. Rad1 {[%clk 0:02:25]}  Nce8 {[%clk 0:01:16]} 18. c5 {[%clk 0:02:23]}  Nd5 {[%clk 0:01:08]} 19. Bg5 {[%clk 0:02:21]}  f6 {[%clk 0:00:51]} 20. Bh4 {[%clk 0:02:17]}  dxc5 {[%clk 0:00:47]} 21. Nxc5 {[%clk 0:02:15]}  Bf7 {[%clk 0:00:47]} 22. Bxa6 {[%clk 0:02:03]}  Nec7 {[%clk 0:00:44]} 23. Bc4 {[%clk 0:01:47]}  Qe7 {[%clk 0:00:36]} 24. Nb3 {[%clk 0:01:37]}  Rad8 {[%clk 0:00:35]} 25. Nfd4 {[%clk 0:01:26]}  Qd6 {[%clk 0:00:30]} 26. Bg3 {[%clk 0:01:26]}  Qb6 {[%clk 0:00:30]} 27. Rfe1 {[%clk 0:01:15]}  f5 {[%clk 0:00:30]} 28. Nf3 {[%clk 0:01:11]}  Nb5 {[%clk 0:00:20]} 29. Ne5 {[%clk 0:01:08]}  Bxe5 {[%clk 0:00:15]} 30. Bxe5 {[%clk 0:01:08]}  Rc8 {[%clk 0:00:13]} 31. Qd3 {[%clk 0:01:04]}  Nbc7 {[%clk 0:00:10]} 32. Bxc7 {[%clk 0:01:00]}  Nxc7 {[%clk 0:00:10]} 33. Bxf7+ {[%clk 0:00:55]}  Rxf7 {[%clk 0:00:10]} 34. Qc4 {[%clk 0:00:48]}  Qb7 {[%clk 0:00:08]} 35. Rd7 {[%clk 0:00:46]}  Rf8 {[%clk 0:00:06]} 36. Ree7 {[%clk 0:00:45]}  Qb5 {[%clk 0:00:05]} 37. Qxc7 {[%clk 0:00:41]}  Rxe7 {[%clk 0:00:03]} 38. Rxe7 {[%clk 0:00:41]} 1-0


[Site "https://www.chess.com"]

[Event "Titled Tuesday Blitz February 28 Early 2023"]
[White "Arabidze, Meri"]
[Black "Nugumanov, Bakhtiyar"]
[WhiteFideId "13604040"]
[BlackFideId "13701797"]
[WhiteElo "2405"]
[BlackElo "2209"]
[Result "1-0"]
[Round "07"]
[TimeControl "180+2"]
[Date "2023.02.28"]
[WhiteClock "0:01:14"]
[BlackClock "0:00:28"]

1. d4 {[%clk 0:02:58]}  Nf6 {[%clk 0:02:58]} 2. Nf3 {[%clk 0:02:59]}  g6 {[%clk 0:02:53]} 3. g3 {[%clk 0:03:00]}  Bg7 {[%clk 0:02:53]} 4. Bg2 {[%clk 0:03:01]}  O-O {[%clk 0:02:53]} 5. O-O {[%clk 0:03:02]}  d5 {[%clk 0:02:53]} 6. b3 {[%clk 0:03:02]}  b6 {[%clk 0:02:48]} 7. Bb2 {[%clk 0:03:01]}  Bb7 {[%clk 0:02:49]} 8. c4 {[%clk 0:03:01]}  e6 {[%clk 0:02:32]} 9. cxd5 {[%clk 0:03:01]}  exd5 {[%clk 0:02:32]} 10. Nbd2 {[%clk 0:03:01]}  Nbd7 {[%clk 0:02:32]} 11. Rc1 {[%clk 0:03:01]}  Ne4 {[%clk 0:02:30]} 12. e3 {[%clk 0:02:54]}  c5 {[%clk 0:02:29]} 13. Qc2 {[%clk 0:02:42]}  Rc8 {[%clk 0:02:26]} 14. dxc5 {[%clk 0:02:36]}  bxc5 {[%clk 0:02:13]} 15. Bxg7 {[%clk 0:02:36]}  Kxg7 {[%clk 0:02:13]} 16. Nxe4 {[%clk 0:02:24]}  dxe4 {[%clk 0:02:13]} 17. Nd2 {[%clk 0:02:25]}  f5 {[%clk 0:02:11]} 18. Nc4 {[%clk 0:02:22]}  Qf6 {[%clk 0:02:00]} 19. Rfd1 {[%clk 0:02:21]}  Nb6 {[%clk 0:01:41]} 20. Nd6 {[%clk 0:01:52]}  Rc7 {[%clk 0:01:31]} 21. Nb5 {[%clk 0:01:42]}  Re7 {[%clk 0:01:25]} 22. Qxc5 {[%clk 0:01:37]}  Rc8 {[%clk 0:01:23]} 23. Qa3 {[%clk 0:01:31]}  Rxc1 {[%clk 0:01:02]} 24. Rxc1 {[%clk 0:01:28]}  Rd7 {[%clk 0:01:02]} 25. Qxa7 {[%clk 0:01:17]}  Qb2 {[%clk 0:00:42]} 26. Rf1 {[%clk 0:01:17]}  Nd5 {[%clk 0:00:41]} 27. Qd4+ {[%clk 0:01:16]}  Qxd4 {[%clk 0:00:40]} 28. Nxd4 {[%clk 0:01:16]}  Nc3 {[%clk 0:00:39]} 29. Ra1 {[%clk 0:01:14]}  Ba6 {[%clk 0:00:31]} 30. Bf1 {[%clk 0:01:13]}  Bxf1 {[%clk 0:00:30]} 31. Kxf1 {[%clk 0:01:14]}  Kf6 {[%clk 0:00:28]} 1-0


[Site "https://www.chess.com"]

[Event "Titled Tuesday Blitz February 28 Early 2023"]
[White "Romero Barreto, Jaime Jose"]
[Black "Maximov, Dmitry"]
[WhiteFideId "3902498"]
[BlackFideId "14105659"]
[WhiteElo "2313"]
[BlackElo "2494"]
[Result "1-0"]
[Round "07"]
[TimeControl "180+2"]
[Date "2023.02.28"]
[WhiteClock "0:02:44"]
[BlackClock "0:02:57"]

1. e4 {[%clk 0:03:00]}  c5 {[%clk 0:02:57]} 2. Nf3 {[%clk 0:02:58]}  d6 {[%clk 0:02:56]} 3. d4 {[%clk 0:02:57]}  cxd4 {[%clk 0:02:57]} 4. Nxd4 {[%clk 0:02:58]}  Nf6 {[%clk 0:02:57]} 5. f3 {[%clk 0:02:58]}  e6 {[%clk 0:02:56]} 6. c4 {[%clk 0:02:58]}  Be7 {[%clk 0:02:56]} 7. Nc3 {[%clk 0:02:58]}  O-O {[%clk 0:02:56]} 8. Be3 {[%clk 0:02:57]}  Nc6 {[%clk 0:02:56]} 9. Be2 {[%clk 0:02:53]}  d5 {[%clk 0:02:56]} 10. Nxc6 {[%clk 0:02:45]}  b6 {[%clk 0:02:57]} 11. Nxd8 {[%clk 0:02:44]} 1-0


[Site "https://www.chess.com"]

[Event "Titled Tuesday Blitz February 28 Early 2023"]
[White "Goltsev, Dmitry"]
[Black "Berkes, Ferenc"]
[WhiteFideId "24176710"]
[BlackFideId "718572"]
[WhiteElo "2302"]
[BlackElo "2664"]
[Result "1-0"]
[Round "07"]
[TimeControl "180+2"]
[Date "2023.02.28"]
[WhiteClock "0:01:47"]
[BlackClock "0:00:05"]

1. e4 {[%clk 0:03:00]}  e6 {[%clk 0:02:58]} 2. d4 {[%clk 0:03:00]}  d5 {[%clk 0:02:58]} 3. exd5 {[%clk 0:03:01]}  exd5 {[%clk 0:02:58]} 4. Nf3 {[%clk 0:03:02]}  Nf6 {[%clk 0:02:57]} 5. c4 {[%clk 0:03:02]}  Be7 {[%clk 0:02:49]} 6. Nc3 {[%clk 0:03:02]}  O-O {[%clk 0:02:49]} 7. Bd3 {[%clk 0:03:03]}  dxc4 {[%clk 0:02:47]} 8. Bxc4 {[%clk 0:03:04]}  Nbd7 {[%clk 0:02:47]} 9. O-O {[%clk 0:03:04]}  Nb6 {[%clk 0:02:47]} 10. Bb3 {[%clk 0:03:05]}  c6 {[%clk 0:02:45]} 11. Qd3 {[%clk 0:03:05]}  Bg4 {[%clk 0:02:44]} 12. Bg5 {[%clk 0:03:05]}  Bh5 {[%clk 0:02:43]} 13. Ne5 {[%clk 0:03:02]}  Nfd5 {[%clk 0:02:38]} 14. Bd2 {[%clk 0:03:00]}  f6 {[%clk 0:02:32]} 15. Bc2 {[%clk 0:02:59]}  g6 {[%clk 0:02:22]} 16. g4 {[%clk 0:02:57]}  fxe5 {[%clk 0:02:20]} 17. gxh5 {[%clk 0:02:57]}  Nb4 {[%clk 0:02:15]} 18. Bb3+ {[%clk 0:02:57]}  Kh8 {[%clk 0:02:08]} 19. Qg3 {[%clk 0:02:56]}  exd4 {[%clk 0:02:04]} 20. hxg6 {[%clk 0:02:55]}  Bf6 {[%clk 0:01:47]} 21. Ne4 {[%clk 0:02:54]}  N4d5 {[%clk 0:01:34]} 22. Kh1 {[%clk 0:02:44]}  Qe7 {[%clk 0:01:21]} 23. Rae1 {[%clk 0:02:43]}  Qg7 {[%clk 0:01:20]} 24. gxh7 {[%clk 0:02:38]}  Qxg3 {[%clk 0:01:15]} 25. fxg3 {[%clk 0:02:39]}  Kxh7 {[%clk 0:01:12]} 26. Nd6 {[%clk 0:02:38]}  Ne3 {[%clk 0:01:06]} 27. Bxe3 {[%clk 0:02:36]}  dxe3 {[%clk 0:01:06]} 28. Rxe3 {[%clk 0:02:37]}  Bg5 {[%clk 0:01:00]} 29. Bc2+ {[%clk 0:02:32]}  Kh8 {[%clk 0:00:53]} 30. Ref3 {[%clk 0:02:26]}  Rxf3 {[%clk 0:00:47]} 31. Rxf3 {[%clk 0:02:26]}  Bc1 {[%clk 0:00:43]} 32. Rf7 {[%clk 0:02:21]}  Bxb2 {[%clk 0:00:40]} 33. Rh7+ {[%clk 0:02:21]}  Kg8 {[%clk 0:00:40]} 34. Rxb7 {[%clk 0:02:22]}  c5 {[%clk 0:00:28]} 35. Bb3+ {[%clk 0:02:21]}  Kh8 {[%clk 0:00:26]} 36. h4 {[%clk 0:02:16]}  Bd4 {[%clk 0:00:22]} 37. Be6 {[%clk 0:02:13]}  c4 {[%clk 0:00:13]} 38. Bxc4 {[%clk 0:02:00]}  Nxc4 {[%clk 0:00:13]} 39. Nxc4 {[%clk 0:02:01]}  Rc8 {[%clk 0:00:12]} 40. Nd6 {[%clk 0:01:59]}  Rc2 {[%clk 0:00:12]} 41. h5 {[%clk 0:01:55]}  Rxa2 {[%clk 0:00:12]} 42. g4 {[%clk 0:01:54]}  Ra5 {[%clk 0:00:10]} 43. g5 {[%clk 0:01:53]}  Bb6 {[%clk 0:00:08]} 44. h6 {[%clk 0:01:51]}  Rd5 {[%clk 0:00:05]} 45. Nf7+ {[%clk 0:01:48]}  Kg8 {[%clk 0:00:05]} 46. g6 {[%clk 0:01:47]} 1-0


[Site "https://www.chess.com"]

[Event "Titled Tuesday Blitz February 28 Early 2023"]
[White "Iskusnyh, Sergei"]
[Black "Nguyen Hong Nhung"]
[WhiteFideId "4120027"]
[BlackFideId "12412201"]
[WhiteElo "2492"]
[BlackElo "1904"]
[Result "1-0"]
[Round "07"]
[TimeControl "180+2"]
[Date "2023.02.28"]
[WhiteClock "0:00:03"]
[BlackClock "0:00:02"]

1. d4 {[%clk 0:03:00]}  Nf6 {[%clk 0:02:57]} 2. c4 {[%clk 0:03:00]}  c5 {[%clk 0:02:57]} 3. d5 {[%clk 0:03:00]}  b5 {[%clk 0:02:58]} 4. cxb5 {[%clk 0:02:59]}  a6 {[%clk 0:02:58]} 5. e3 {[%clk 0:02:56]}  g6 {[%clk 0:02:58]} 6. Nc3 {[%clk 0:02:49]}  Bg7 {[%clk 0:02:58]} 7. a4 {[%clk 0:02:47]}  O-O {[%clk 0:02:56]} 8. e4 {[%clk 0:02:46]}  Bb7 {[%clk 0:02:48]} 9. Bg5 {[%clk 0:02:43]}  d6 {[%clk 0:02:42]} 10. Nf3 {[%clk 0:02:34]}  Qa5 {[%clk 0:02:28]} 11. Nd2 {[%clk 0:02:30]}  e6 {[%clk 0:02:17]} 12. Nc4 {[%clk 0:01:45]}  Qc7 {[%clk 0:01:42]} 13. dxe6 {[%clk 0:01:40]}  Nxe4 {[%clk 0:01:17]} 14. Nxe4 {[%clk 0:01:30]}  Bxe4 {[%clk 0:01:13]} 15. Qxd6 {[%clk 0:01:20]}  Qb7 {[%clk 0:00:57]} 16. e7 {[%clk 0:00:49]}  Re8 {[%clk 0:00:53]} 17. f3 {[%clk 0:00:45]}  Bf5 {[%clk 0:00:25]} 18. Be2 {[%clk 0:00:40]}  axb5 {[%clk 0:00:24]} 19. Ne3 {[%clk 0:00:31]}  Ra6 {[%clk 0:00:19]} 20. Qd8 {[%clk 0:00:29]}  Bd7 {[%clk 0:00:16]} 21. O-O {[%clk 0:00:26]}  Nc6 {[%clk 0:00:16]} 22. axb5 {[%clk 0:00:17]}  Nxd8 {[%clk 0:00:14]} 23. bxa6 {[%clk 0:00:16]}  Qa7 {[%clk 0:00:12]} 24. exd8=Q {[%clk 0:00:15]}  Rxd8 {[%clk 0:00:12]} 25. Bxd8 {[%clk 0:00:15]}  c4 {[%clk 0:00:12]} 26. Kh1 {[%clk 0:00:12]}  Bxb2 {[%clk 0:00:09]} 27. Nxc4 {[%clk 0:00:10]}  Bxa1 {[%clk 0:00:09]} 28. Rxa1 {[%clk 0:00:10]}  Qd4 {[%clk 0:00:08]} 29. Rd1 {[%clk 0:00:08]}  Qa7 {[%clk 0:00:04]} 30. Bb6 {[%clk 0:00:07]}  Qa8 {[%clk 0:00:02]} 31. Rxd7 {[%clk 0:00:07]}  Qc6 {[%clk 0:00:03]} 32. Rd8+ {[%clk 0:00:06]}  Kg7 {[%clk 0:00:03]} 33. Bd4+ {[%clk 0:00:06]}  Kh6 {[%clk 0:00:03]} 34. a7 {[%clk 0:00:06]}  Qb7 {[%clk 0:00:01]} 35. Be3+ {[%clk 0:00:05]}  g5 {[%clk 0:00:01]} 36. a8=Q {[%clk 0:00:04]}  Qb1+ {[%clk 0:00:02]} 37. Bg1 {[%clk 0:00:04]}  f6 {[%clk 0:00:03]} 38. Rg8 {[%clk 0:00:03]}  Kh5 {[%clk 0:00:01]} 39. Qf8 {[%clk 0:00:03]}  Kh4 {[%clk 0:00:02]} 40. Qh6# {[%clk 0:00:03]} 1-0


[Site "https://www.chess.com"]

[Event "Titled Tuesday Blitz February 28 Early 2023"]
[White "Rosen, Eric"]
[Black "Sokac, Marko"]
[WhiteFideId "2032562"]
[BlackFideId "14531356"]
[WhiteElo "2359"]
[BlackElo "2355"]
[Result "0-1"]
[Round "07"]
[TimeControl "180+2"]
[Date "2023.02.28"]
[WhiteClock "0:00:01"]
[BlackClock "0:00:07"]

1. e4 {[%clk 0:03:00]}  d6 {[%clk 0:02:59]} 2. d4 {[%clk 0:02:57]}  Nf6 {[%clk 0:02:59]} 3. Nc3 {[%clk 0:02:57]}  c6 {[%clk 0:02:59]} 4. a4 {[%clk 0:02:53]}  a5 {[%clk 0:02:51]} 5. f4 {[%clk 0:02:43]}  Qc7 {[%clk 0:02:45]} 6. Nf3 {[%clk 0:02:43]}  Bg4 {[%clk 0:02:41]} 7. Bd3 {[%clk 0:02:38]}  Nbd7 {[%clk 0:02:38]} 8. e5 {[%clk 0:02:35]}  Nd5 {[%clk 0:02:31]} 9. O-O {[%clk 0:02:31]}  e6 {[%clk 0:02:28]} 10. h3 {[%clk 0:02:31]}  Bxf3 {[%clk 0:02:19]} 11. Qxf3 {[%clk 0:02:31]}  g6 {[%clk 0:02:19]} 12. f5 {[%clk 0:02:23]}  gxf5 {[%clk 0:02:19]} 13. Ne4 {[%clk 0:01:37]}  dxe5 {[%clk 0:02:03]} 14. Ng5 {[%clk 0:01:38]}  exd4 {[%clk 0:01:28]} 15. c4 {[%clk 0:01:00]}  dxc3 {[%clk 0:01:23]} 16. bxc3 {[%clk 0:01:00]}  Ne5 {[%clk 0:01:21]} 17. Qg3 {[%clk 0:00:52]}  Nxd3 {[%clk 0:01:16]} 18. Qxd3 {[%clk 0:00:50]}  O-O-O {[%clk 0:01:15]} 19. c4 {[%clk 0:00:42]}  Bc5+ {[%clk 0:01:13]} 20. Kh1 {[%clk 0:00:42]}  Ne3 {[%clk 0:01:12]} 21. Qe2 {[%clk 0:00:13]}  Nxf1 {[%clk 0:01:10]} 22. Qxf1 {[%clk 0:00:14]}  h6 {[%clk 0:01:10]} 23. Nf3 {[%clk 0:00:07]}  Qg3 {[%clk 0:01:08]} 24. Rb1 {[%clk 0:00:03]}  Rhg8 {[%clk 0:01:06]} 25. Rb2 {[%clk 0:00:02]}  f4 {[%clk 0:00:19]} 26. Bd2 {[%clk 0:00:02]}  f6 {[%clk 0:00:13]} 27. Be1 {[%clk 0:00:03]}  Qg6 {[%clk 0:00:10]} 28. Bxa5 {[%clk 0:00:04]}  Qd3 {[%clk 0:00:08]} 29. Qxd3 {[%clk 0:00:02]}  Rxd3 {[%clk 0:00:09]} 30. Bd2 {[%clk 0:00:02]}  e5 {[%clk 0:00:08]} 31. Nh4 {[%clk 0:00:01]}  Rgd8 {[%clk 0:00:08]} 32. Be1 {[%clk 0:00:01]}  Rd1 {[%clk 0:00:08]} 33. Re2 {[%clk 0:00:01]}  R8d3 {[%clk 0:00:06]} 34. Kh2 {[%clk 0:00:01]}  Re3 {[%clk 0:00:06]} 35. Rxe3 {[%clk 0:00:01]}  fxe3 {[%clk 0:00:07]} 36. Nf3 {[%clk 0:00:01]}  e4 {[%clk 0:00:06]} 37. Bc3 {[%clk 0:00:01]}  exf3 {[%clk 0:00:06]} 38. gxf3 {[%clk 0:00:02]}  e2 {[%clk 0:00:07]} 39. Kg3 {[%clk 0:00:03]}  e1=Q+ {[%clk 0:00:07]} 40. Bxe1 {[%clk 0:00:03]}  Rxe1 {[%clk 0:00:08]} 41. a5 {[%clk 0:00:04]}  Ra1 {[%clk 0:00:09]} 42. a6 {[%clk 0:00:05]}  Rxa6 {[%clk 0:00:09]} 43. Kh4 {[%clk 0:00:05]}  Ra3 {[%clk 0:00:10]} 44. f4 {[%clk 0:00:05]}  Ra4 {[%clk 0:00:10]} 45. f5 {[%clk 0:00:04]}  Rxc4+ {[%clk 0:00:10]} 46. Kh5 {[%clk 0:00:05]}  Bf2 {[%clk 0:00:09]} 47. Kg6 {[%clk 0:00:05]}  Rh4 {[%clk 0:00:10]} 48. Kxf6 {[%clk 0:00:05]}  Rxh3 {[%clk 0:00:10]} 49. Ke6 {[%clk 0:00:06]}  Rf3 {[%clk 0:00:11]} 50. f6 {[%clk 0:00:05]}  b5 {[%clk 0:00:12]} 51. Ke7 {[%clk 0:00:05]}  b4 {[%clk 0:00:12]} 52. f7 {[%clk 0:00:05]}  b3 {[%clk 0:00:12]} 53. Ke6 {[%clk 0:00:03]}  b2 {[%clk 0:00:11]} 54. Ke7 {[%clk 0:00:03]}  b1=Q {[%clk 0:00:11]} 55. f8=Q+ {[%clk 0:00:02]}  Rxf8 {[%clk 0:00:10]} 56. Kd6 {[%clk 0:00:01]}  Qd3+ {[%clk 0:00:09]} 57. Ke7 {[%clk 0:00:01]}  Qd7+ {[%clk 0:00:08]} 58. Kxf8 {[%clk 0:00:01]}  Bc5+ {[%clk 0:00:09]} 59. Kg8 {[%clk 0:00:02]}  Kd8 {[%clk 0:00:06]} 60. Kh8 {[%clk 0:00:01]}  Bd4+ {[%clk 0:00:07]} 61. Kg8 {[%clk 0:00:01]}  Qg7# {[%clk 0:00:07]} 0-1


[Site "https://www.chess.com"]